[Event "12th National Amateur Chess-ch 2025"]
[Site "Bihar"]
[Date "2025.03.27"]
[Round "4.8"]
[White "Rahul, Kumar"]
[Black "Rohit Rahulkumar J"]
[Result "1/2-1/2"]
[Annotator "NA RC"]
[ECO "B78"]
[WhiteElo "1825"]
[BlackElo "1707"]
[PlyCount "84"]
[EventDate "2025.03.25"]
[EventCountry "IND"]
[SourceTitle "playchess.com"]
[Source "ChessBase"]
[SourceQuality "1"]
[TimeControl "5400+30"]

1. e4 {[%emt 0:01:41]} c5 {[%emt 0:04:13]} 2. Nf3 {[%emt 0:02:51]} d6 {[%emt 0:00:09]} 3. d4 {[%emt 0:01:43]} cxd4 {[%emt 0:00:06]} 4. Nxd4 {[%emt 0:00:34]} Nf6 {[%emt 0:00:24]} 5. Nc3 {[%emt 0:00:17]} g6 {[%emt 0:00:08]} 6. Be3 {[%emt 0:04:38]} Bg7 {[%emt 0:00:08]} 7. f3 {[%emt 0:00:07]} O-O {[%emt 0:00:07]} 8. Bc4 {[%emt 0:00:03]} Nc6 {[%emt 0:00:14]} 9. Qd2 {[%emt 0:00:10]} Bd7 {[%emt 0:00:09]} 10. O-O-O {[%emt 0:01:17]} Rc8 {[%emt 0:00:16]} 11. Bb3 {[%emt 0:00:09]} Nxd4 {[%emt 0:00:14]} 12. Bxd4 {[%emt 0:01:09]} b5 {[%emt 0:00:02]} 13. e5 {[%emt 0:04:29]} dxe5 {[%emt 0:00:22]} 14. Bxe5 {[%emt 0:00:13]} Bc6 {[%emt 0:00:09]} 15. Qe3 {[%emt 0:07:18]} Qa5 {[%emt 0:00:15]} 16. Bd4 {[%emt 0:14:38]} b4 {[%emt 0:00:18]} 17. Ne2 {[%emt 0:09:30]} Ba4 {[%emt 0:04:24]} 18. Qe5 {[%emt 0:11:05]} Qa6 {[%emt 0:01:19]} 19. Kb1 {[%emt 0:05:35]} Bxb3 {[%emt 0:01:33]} 20. axb3 {[%emt 0:01:25]} Qc6 {[%emt 0:07:54]} 21. Rd2 {[%emt 0:10:20]} Rc7 {[%emt 0:03:52]} 22. Qa5 {[%emt 0:06:39]} Bh6 {[%emt 0:02:29]} 23. Be5 {[%emt 0:03:44]} Rcc8 {[%emt 0:10:02]} 24. Bf4 {[%emt 0:00:21]} Bg7 {[%emt 0:02:00]} 25. Rhd1 {[%emt 0:01:23]} Nh5 {[%emt 0:05:19]} 26. Qxb4 {[%emt 0:04:28]} a5 {[%emt 0:01:15]} 27. Qe4 {[%emt 0:02:04]} Qf6 {[%emt 0:00:14]} 28. c3 {[%emt 0:00:47]} Qb6 {[%emt 0:01:44]} 29. Qa4 {[%emt 0:01:19]} Nxf4 {[%emt 0:01:51]} 30. Nxf4 {[%emt 0:00:26]} e6 {[%emt 0:00:21]} 31. Ne2 {[%emt 0:01:36]} Bh6 {[%emt 0:01:10]} 32. Rd4 {[%emt 0:02:17]} Bg7 {[%emt 0:00:24]} 33. R4d2 {[%emt 0:00:47]} Bh6 {[%emt 0:01:10]} 34. Rc2 {[%emt 0:00:36]} Rfd8 {[%emt 0:00:27]} 35. Rxd8+ {[%emt 0:00:21]} Rxd8 {[%emt 0:00:11]} 36. Nd4 {[%emt 0:00:06]} e5 {[%emt 0:01:12]} 37. Qb5 {[%emt 0:00:42]} Qd6 {[%emt 0:01:10]} 38. Ne2 {[%emt 0:01:31]} Qd1+ {[%emt 0:00:30]} 39. Nc1 {[%emt 0:00:11]} Qg1 {[%emt 0:04:33]} 40. Qxe5 {[%emt 0:00:32]} Rd1 {[%emt 0:00:19]} 41. Qb8+ {[%emt 0:01:13]} Kg7 {[%emt 0:00:03]} 42. Qe5+ {[%emt 0:00:03]} Kg8 {[%emt 0:00:11]} 1/2-1/2

[Event "12th National Amateur Chess-ch 2025"]
[Site "Bihar"]
[Date "2025.03.27"]
[Round "4.9"]
[White "Vamsi Krishna, R."]
[Black "Tejas Shandilya"]
[Result "1-0"]
[Annotator "NA RC"]
[ECO "D05"]
[WhiteElo "1620"]
[BlackElo "1675"]
[PlyCount "89"]
[EventDate "2025.03.25"]
[EventCountry "IND"]
[SourceTitle "playchess.com"]
[Source "ChessBase"]
[SourceQuality "1"]
[TimeControl "5400+30"]

1. d4 {[%emt 0:02:09]} d5 {[%emt 0:02:46]} 2. e3 {[%emt 0:01:58]} e6 {[%emt 0:01:49]} 3. Nf3 {[%emt 0:02:04]} Nf6 {[%emt 0:01:04]} 4. Bd3 {[%emt 0:01:06]} Be7 {[%emt 0:01:30]} 5. O-O {[%emt 0:00:33]} O-O {[%emt 0:00:52]} 6. Nbd2 {[%emt 0:02:29]} b6 {[%emt 0:01:29]} 7. Re1 {[%emt 0:01:09]} Bb7 {[%emt 0:01:01]} 8. e4 {[%emt 0:02:01]} dxe4 {[%emt 0:00:39]} 9. Nxe4 {[%emt 0:00:18]} Nxe4 {[%emt 0:00:25]} 10. Bxe4 {[%emt 0:00:08]} Bxe4 {[%emt 0:00:00]} 11. Rxe4 {[%emt 0:00:38]} c5 {[%emt 0:00:41]} 12. Qe2 {[%emt 0:08:25]} Nc6 {[%emt 0:02:53]} 13. c3 {[%emt 0:04:55]} cxd4 {[%emt 0:01:31]} 14. Nxd4 {[%emt 0:00:14]} Qc8 {[%emt 0:01:39]} 15. Nf3 {[%emt 0:08:46]} Bf6 {[%emt 0:01:31]} 16. Bg5 {[%emt 0:02:45]} Qd8 {[%emt 0:02:29]} 17. Bxf6 {[%emt 0:07:03]} Qxf6 {[%emt 0:00:03]} 18. Rh4 {[%emt 0:00:45]} Ne7 {[%emt 0:02:57]} 19. Rd4 {[%emt 0:02:20]} Nf5 {[%emt 0:01:30]} 20. Rd7 {[%emt 0:01:09]} Rad8 {[%emt 0:02:30]} 21. Rxa7 {[%emt 0:02:18]} Nh4 {[%emt 0:00:17]} 22. Nxh4 {[%emt 0:02:35]} Qxh4 {[%emt 0:00:04]} 23. Rd1 {[%emt 0:01:38]} Qe4 {[%emt 0:01:06]} 24. Kf1 {[%emt 0:04:13]} Qf4 {[%emt 0:02:40]} 25. g3 {[%emt 0:01:43]} Rxd1+ {[%emt 0:00:38]} 26. Qxd1 {[%emt 0:01:00]} Qe4 {[%emt 0:00:19]} 27. Kg1 {[%emt 0:00:35]} g6 {[%emt 0:00:21]} 28. Ra4 {[%emt 0:00:31]} Qf5 {[%emt 0:01:12]} 29. Rf4 {[%emt 0:03:04]} Qg5 {[%emt 0:00:19]} 30. h4 {[%emt 0:00:57]} Qb5 {[%emt 0:00:24]} 31. Rb4 {[%emt 0:01:16]} Qa5 {[%emt 0:01:38]} 32. a4 {[%emt 0:01:06]} Ra8 {[%emt 0:00:33]} 33. Qd4 {[%emt 0:08:39]} e5 {[%emt 0:10:07]} 34. Qd6 {[%emt 0:03:13]} Qc5 {[%emt 0:06:10]} 35. Qxc5 {[%emt 0:01:33]} bxc5 {[%emt 0:00:01]} 36. Rb5 {[%emt 0:01:21]} Rxa4 {[%emt 0:00:12]} 37. Rxc5 {[%emt 0:00:34]} e4 {[%emt 0:00:01]} 38. b4 {[%emt 0:00:52]} Kf8 {[%emt 0:00:19]} 39. b5 {[%emt 0:00:08]} Ra1+ {[%emt 0:00:06]} 40. Kg2 {[%emt 0:00:41]} Rb1 {[%emt 0:00:01]} 41. c4 {[%emt 0:00:16]} Rb2 {[%emt 0:00:30]} 42. Kf1 {[%emt 0:00:04]} Ke7 {[%emt 0:01:17]} 43. Re5+ {[%emt 0:01:05]} Kd6 {[%emt 0:00:09]} 44. Rxe4 {[%emt 0:00:22]} Kc5 {[%emt 0:00:22]} 45. Re7 {[%emt 0:00:04]} 1-0

[Event "12th National Amateur Chess-ch 2025"]
[Site "Bihar"]
[Date "2025.03.27"]
[Round "4.10"]
[White "Adithya Vishveshwaran M"]
[Black "Jaikishan Jaiswal"]
[Result "0-1"]
[Annotator "NA RC"]
[ECO "D73"]
[WhiteElo "1667"]
[BlackElo "1616"]
[PlyCount "57"]
[EventDate "2025.03.25"]
[EventCountry "IND"]
[SourceTitle "playchess.com"]
[Source "ChessBase"]
[SourceQuality "1"]
[TimeControl "5400+30"]

1. Nf3 {[%emt 0:13:17]} g6 {[%emt 0:00:32]} 2. d4 {[%emt 0:00:35]} Nf6 {[%emt 0:00:32]} 3. g3 {[%emt 0:00:20]} Bg7 {[%emt 0:00:20]} 4. Bg2 {[%emt 0:00:07]} d5 {[%emt 0:00:38]} 5. c4 {[%emt 0:00:15]} c6 {[%emt 0:01:08]} 6. Bf4 {[%emt 0:00:12]} O-O {[%emt 0:01:46]} 7. Nc3 {[%emt 0:00:24]} Ne4 {[%emt 0:04:15]} 8. Nxe4 {[%emt 0:01:40]} dxe4 {[%emt 0:00:27]} 9. Ne5 {[%emt 0:00:06]} f6 {[%emt 0:01:09]} 10. Nxg6 {[%emt 0:00:35]} hxg6 {[%emt 0:03:39]} 11. Bxe4 {[%emt 0:02:05]} f5 {[%emt 0:00:25]} 12. Bd3 {[%emt 0:00:17]} Qxd4 {[%emt 0:01:57]} 13. Rb1 {[%emt 0:00:53]} e5 {[%emt 0:00:42]} 14. Be3 {[%emt 0:00:08]} Qd8 {[%emt 0:00:25]} 15. c5 {[%emt 0:00:23]} Be6 {[%emt 0:00:40]} 16. Qc2 {[%emt 0:00:41]} Qa5+ {[%emt 0:02:34]} 17. Bd2 {[%emt 0:00:22]} Qxa2 {[%emt 0:00:40]} 18. f3 {[%emt 0:00:49]} Qb3 {[%emt 0:01:19]} 19. h4 {[%emt 0:01:12]} Qxc2 {[%emt 0:01:29]} 20. Bxc2 {[%emt 0:00:06]} Nd7 {[%emt 0:00:33]} 21. b4 {[%emt 0:02:13]} Nf6 {[%emt 0:01:59]} 22. g4 {[%emt 0:02:41]} Kf7 {[%emt 0:07:24]} 23. h5 {[%emt 0:02:19]} gxh5 {[%emt 0:04:56]} 24. gxf5 {[%emt 0:00:56]} Bc4 {[%emt 0:00:43]} 25. Kf2 {[%emt 0:00:48]} b5 {[%emt 0:01:34]} 26. e4 {[%emt 0:01:20]} Rfd8 {[%emt 0:01:36]} 27. Bg5 {[%emt 0:00:30]} a5 {[%emt 0:01:50]} 28. Ke1 {[%emt 0:04:21]} axb4 {[%emt 0:03:18]} 29. f4 {[%emt 0:00:43]} 0-1

[Event "12th National Amateur Chess-ch 2025"]
[Site "Bihar"]
[Date "2025.03.27"]
[Round "4.11"]
[White "Veer Rakeshkumar Patel"]
[Black "Gadge Vedant"]
[Result "0-1"]
[Annotator "NA RC"]
[ECO "B07"]
[WhiteElo "1608"]
[BlackElo "1667"]
[PlyCount "56"]
[EventDate "2025.03.25"]
[EventCountry "IND"]
[SourceTitle "playchess.com"]
[Source "ChessBase"]
[SourceQuality "1"]
[TimeControl "5400+30"]

1. e4 {[%emt 0:00:02]} g6 {[%emt 0:04:06]} 2. d4 {[%emt 0:00:13]} Bg7 {[%emt 0:00:06]} 3. Nc3 {[%emt 0:00:13]} d6 {[%emt 0:00:08]} 4. Be3 {[%emt 0:00:07]} Nf6 {[%emt 0:00:07]} 5. f3 {[%emt 0:00:09]} O-O {[%emt 0:00:43]} 6. Qd2 {[%emt 0:00:06]} e5 {[%emt 0:01:22]} 7. d5 {[%emt 0:00:42]} Nbd7 {[%emt 0:00:11]} 8. Nh3 {[%emt 0:00:44]} a6 {[%emt 0:00:57]} 9. a4 {[%emt 0:00:36]} Nc5 {[%emt 0:01:04]} 10. Bxc5 {[%emt 0:00:57]} dxc5 {[%emt 0:00:08]} 11. Nf2 {[%emt 0:00:06]} Nh5 {[%emt 0:01:44]} 12. Nd3 {[%emt 0:00:56]} b6 {[%emt 0:00:42]} 13. O-O-O {[%emt 0:03:16]} Qd6 {[%emt 0:05:01]} 14. Kb1 {[%emt 0:04:59]} Bd7 {[%emt 0:00:18]} 15. g4 {[%emt 0:01:35]} Nf4 {[%emt 0:00:51]} 16. Nc1 {[%emt 0:04:10]} Rfb8 {[%emt 0:04:36]} 17. g5 {[%emt 0:01:12]} b5 {[%emt 0:00:18]} 18. a5 {[%emt 0:00:09]} b4 {[%emt 0:00:10]} 19. N3e2 {[%emt 0:00:08]} Bb5 {[%emt 0:00:43]} 20. Nxf4 {[%emt 0:02:29]} exf4 {[%emt 0:00:11]} 21. Nd3 {[%emt 0:00:32]} c4 {[%emt 0:02:22]} 22. Nxb4 {[%emt 0:05:34]} Ba4 {[%emt 0:00:18]} 23. c3 {[%emt 0:02:44]} Bxd1 {[%emt 0:00:11]} 24. Qxd1 {[%emt 0:00:42]} Rxb4 {[%emt 0:03:14]} 25. cxb4 {[%emt 0:00:11]} Qxb4 {[%emt 0:00:02]} 26. Qc2 {[%emt 0:00:28]} Rb8 {[%emt 0:00:33]} 27. Bxc4 {[%emt 0:01:20]} Bxb2 {[%emt 0:00:04]} 28. Bb3 {[%emt 0:00:52]} Be5 {[%emt 0:00:44]} 0-1

[Event "12th National Amateur Chess-ch 2025"]
[Site "Bihar"]
[Date "2025.03.27"]
[Round "4.12"]
[White "Aole Sangharsh"]
[Black "Avyay Sharma"]
[Result "0-1"]
[Annotator "NA RC"]
[ECO "D02"]
[WhiteElo "1664"]
[BlackElo "1586"]
[PlyCount "120"]
[EventDate "2025.03.25"]
[EventCountry "IND"]
[SourceTitle "playchess.com"]
[Source "ChessBase"]
[SourceQuality "1"]
[TimeControl "5400+30"]

1. d4 {[%emt 0:00:09]} Nf6 {[%emt 0:00:09]} 2. Bf4 {[%emt 0:00:08]} d5 {[%emt 0:00:10]} 3. e3 {[%emt 0:00:04]} e6 {[%emt 0:00:20]} 4. Nf3 {[%emt 0:00:13]} c5 {[%emt 0:00:07]} 5. c3 {[%emt 0:00:05]} Nc6 {[%emt 0:00:22]} 6. Be2 {[%emt 0:00:24]} cxd4 {[%emt 0:00:51]} 7. exd4 {[%emt 0:00:08]} Bd6 {[%emt 0:01:11]} 8. Bg3 {[%emt 0:00:43]} Ne7 {[%emt 0:01:04]} 9. Ne5 {[%emt 0:00:24]} Bxe5 {[%emt 0:00:28]} 10. dxe5 {[%emt 0:00:23]} Ne4 {[%emt 0:00:10]} 11. Nd2 {[%emt 0:00:22]} Nxg3 {[%emt 0:00:20]} 12. hxg3 {[%emt 0:00:07]} Bd7 {[%emt 0:01:26]} 13. Qc2 {[%emt 0:01:30]} h6 {[%emt 0:00:52]} 14. Nf3 {[%emt 0:00:51]} Nc6 {[%emt 0:00:29]} 15. c4 {[%emt 0:05:27]} Rc8 {[%emt 0:03:14]} 16. Qd2 {[%emt 0:02:11]} dxc4 {[%emt 0:00:38]} 17. Bxc4 {[%emt 0:03:48]} Qc7 {[%emt 0:00:56]} 18. O-O {[%emt 0:03:55]} O-O {[%emt 0:00:30]} 19. Qe3 {[%emt 0:02:41]} Qa5 {[%emt 0:02:08]} 20. a3 {[%emt 0:03:22]} a6 {[%emt 0:00:50]} 21. b4 {[%emt 0:01:20]} Qc7 {[%emt 0:00:17]} 22. Rac1 {[%emt 0:00:38]} b5 {[%emt 0:00:29]} 23. Bd3 {[%emt 0:01:15]} Qb7 {[%emt 0:00:45]} 24. Nd2 {[%emt 0:01:34]} Ne7 {[%emt 0:00:26]} 25. Ne4 {[%emt 0:01:24]} Nf5 {[%emt 0:00:41]} 26. Qf4 {[%emt 0:00:37]} Qd5 {[%emt 0:00:34]} 27. Rcd1 {[%emt 0:03:51]} Bc6 {[%emt 0:04:05]} 28. g4 {[%emt 0:02:13]} Ne7 {[%emt 0:02:01]} 29. Bb1 {[%emt 0:00:25]} Ng6 {[%emt 0:00:16]} 30. Rxd5 {[%emt 0:10:55]} Nxf4 {[%emt 0:00:02]} 31. Rd6 {[%emt 0:00:12]} Bd5 {[%emt 0:01:42]} 32. Nc5 {[%emt 0:11:04]} Bxg2 {[%emt 0:00:40]} 33. Rfd1 {[%emt 0:00:46]} Bd5 {[%emt 0:00:40]} 34. Kh2 {[%emt 0:05:54]} Rfd8 {[%emt 0:00:42]} 35. Be4 {[%emt 0:01:44]} Rxd6 {[%emt 0:00:49]} 36. exd6 {[%emt 0:00:08]} Rd8 {[%emt 0:00:06]} 37. Kg3 {[%emt 0:02:30]} Ne2+ {[%emt 0:00:20]} 38. Kf3 {[%emt 0:00:42]} Nc3 {[%emt 0:00:07]} 39. Bxd5 {[%emt 0:01:24]} Rxd6 {[%emt 0:01:13]} 40. Rd3 {[%emt 0:01:35]} Nxd5 {[%emt 0:00:08]} 41. Rb3 {[%emt 0:02:59]} Rc6 {[%emt 0:01:57]} 42. Nd7 {[%emt 0:01:20]} Rc7 {[%emt 0:00:44]} 43. Nb8 {[%emt 0:00:32]} Ra7 {[%emt 0:00:28]} 44. Ke4 {[%emt 0:00:48]} Ra8 {[%emt 0:00:20]} 45. Nd7 {[%emt 0:00:24]} Rc8 {[%emt 0:00:12]} 46. Ke5 {[%emt 0:00:38]} Rc6 {[%emt 0:00:15]} 47. Nb8 {[%emt 0:01:58]} f6+ {[%emt 0:00:15]} 48. Kd4 {[%emt 0:00:16]} Rc4+ {[%emt 0:00:03]} 49. Kd3 {[%emt 0:00:26]} Rxg4 {[%emt 0:00:04]} 50. Nxa6 {[%emt 0:00:18]} h5 {[%emt 0:00:02]} 51. Rb1 {[%emt 0:00:56]} Nf4+ {[%emt 0:00:15]} 52. Kd4 {[%emt 0:00:39]} Ne2+ {[%emt 0:00:25]} 53. Kc5 {[%emt 0:00:23]} Nc3 {[%emt 0:00:22]} 54. Rb3 {[%emt 0:00:54]} Rc4+ {[%emt 0:01:26]} 55. Kb6 {[%emt 0:00:00]} h4 {[%emt 0:00:11]} 56. a4 {[%emt 0:02:53]} bxa4 {[%emt 0:00:27]} 57. Ra3 {[%emt 0:00:09]} h3 {[%emt 0:00:04]} 58. Ra1 {[%emt 0:00:22]} a3 {[%emt 0:00:02]} 59. Ka5 {[%emt 0:00:16]} h2 {[%emt 0:00:05]} 60. b5 {[%emt 0:00:28]} Ra4+ {[%emt 0:00:07]} 0-1

[Event "12th National Amateur Chess-ch 2025"]
[Site "Bihar"]
[Date "2025.03.27"]
[Round "4.13"]
[White "Marium Fatima"]
[Black "Bristy Mukherjee"]
[Result "0-1"]
[Annotator "TA"]
[ECO "D11"]
[WhiteElo "1881"]
[BlackElo "1985"]
[PlyCount "116"]
[EventDate "2025.03.25"]
[EventCountry "IND"]
[SourceTitle "playchess.com"]
[Source "ChessBase"]
[SourceQuality "1"]
[TimeControl "5400+30"]

{[%evp 18,116,0,0,0,0,0,0,0,-12,-10,-29,-24,-20,0,-12,-5,-37,-35,-65,-64,-71,-74,-68,-75,-76,-81,-68,-79,-134,-131,-148,-133,-145,-116,-110,-152,-203,-105,-141,-91,-81,-32,-42,-43,-33,-54,-45,-49,-39,-18,-43,-50,-187,-164,-208,-196,-206,-206,-183,-175,-245,-255,-255,-249,-335,-333,-615,-609,-812,-819,-768,-525,-845,-845,-832,-775,-715,-656,-887,-841,-1357,-1321,-1197,-2326,-2643,-2460,-1868,-2670,-2524,-1344,-6109,-5213,-6095,-6095,-5069,-1766,-29976,-29977,-29975,-10517]} 1. d4 {[%emt 0:00:02]} d5 {[%emt 0:00:58]} 2. Nf3 {[%emt 0:00:07]} Nf6 {[%emt 0:00:08]} 3. g3 {[%emt 0:00:05]} h6 {[%emt 0:00:16]} 4. Bg2 {[%emt 0:00:07]} Bf5 {[%emt 0:00:26]} 5. O-O {[%emt 0:00:08]} e6 {[%emt 0:01:00]} 6. c4 {[%emt 0:00:08]} c6 {[%emt 0:00:12]} 7. Nc3 {[%emt 0:00:05]} Be7 {[%emt 0:02:48]} 8. Qb3 {[%emt 0:00:06]} Qb6 {[%emt 0:00:42]} 9. c5 {[%emt 0:00:06]} Qxb3 {[%emt 0:00:50]} 10. axb3 {[%emt 0:00:02]} O-O $1 {[%emt 0:02:05] 10...0-0 is better than 10...Na6. D11: Slav Defence: 3 Nf3 sidelines and 3...Nf6 4 e3 Bg4.} 11. b4 {[%emt 0:00:24]} a6 {[%emt 0:02:30]} 12. h3 {[%emt 0:01:01]} Nbd7 {[%emt 0:02:17] The position is equal.} 13. Kh2 $146 {[%emt 0:01:45]} (13. g4 Bh7 14. Bf4 g5 15. Bh2 h5 16. Nxg5 hxg4 17. Nxh7 Kxh7 18. Rfd1 gxh3 19. Bxh3 {0-1 Adly,A (2596)-Van Foreest,J (2693) FIDE World Cup 2023 (2.2)}) 13... Rfe8 {[%emt 0:04:33]} 14. g4 {[%emt 0:01:53]} Bh7 {[%emt 0:04:53]} 15. Bf4 {[%emt 0:00:12]} Bf8 {[%emt 0:00:47]} 16. Ra3 {[%emt 0:05:29]} Rac8 {[%emt 0:05:48]} 17. Nd2 {[%emt 0:06:38]} e5 {[%emt 0:04:08]} 18. Be3 {[%emt 0:01:40]} g5 {[%emt 0:04:45]} 19. dxe5 {[%emt 0:10:32]} Nxe5 {[%emt 0:00:40]} 20. Bd4 {[%emt 0:01:14]} Bg7 {[%emt 0:01:13]} 21. Bxe5 {[%emt 0:09:35]} Rxe5 {[%emt 0:01:25]} 22. e3 {[%emt 0:03:11]} Re7 {[%emt 0:11:13]} 23. Bf3 {[%emt 0:06:33]} (23. Nb3 $142) 23... Nd7 $17 {[%emt 0:02:40]} 24. Be2 {[%emt 0:02:45]} Rce8 {[%emt 0:03:49]} 25. Nf3 {[%emt 0:01:20]} d4 {[%emt 0:05:47]} 26. Nd1 {[%emt 0:07:38]} dxe3 {[%emt 0:02:51]} 27. Rxe3 {[%emt 0:00:28]} (27. Nxe3 $17 Be4 (27... Bxb2 $2 28. Rb3 $19) 28. Nd2) 27... Ne5 {[%emt 0:05:48]} ({Black should play} 27... Rxe3 $19 28. Nxe3 Bxb2) 28. Nd2 {[%emt 0:02:44][%cal Bf3d2,Bd2c4,Bc4d6][%mdl 32]} Ng6 {[%emt 0:12:47]} (28... Kf8 $142 29. Re1 Nd3 30. Bxd3 Bxd3) 29. Nc4 {[%emt 0:02:33]} Nf4 {[%emt 0:01:20] Against Bd3} (29... Bd4 $17 30. Rxe7 Rxe7) 30. Nd6 $15 {[%emt 0:02:39] [#]} Nd5 $1 $36 {[%emt 0:00:26][%mdl 2048] White is under pressure.} 31. Nxe8 {[%emt 0:04:04]} Nxe3 {[%emt 0:00:12]} 32. Nxe3 {[%emt 0:00:52] And now Nxg7 would win.} Rxe8 {[%emt 0:00:42]} 33. Rd1 $1 {[%emt 0:01:16]} Be5+ {[%emt 0:04:27]} 34. Kg1 {[%emt 0:03:43]} Re7 {[%emt 0:01:53] Prevents Rd7.} 35. Nc4 {[%emt 0:03:58] [#] Loses the game.} ({White should try} 35. b3 $15) 35... Bxb2 $1 $19 {[%emt 0:04:07][%mdl 512]} 36. Kf1 {[%emt 0:01:13]} (36. Rd8+ Kg7) 36... Bc3 {[%emt 0:00:29]} 37. Rd8+ {[%emt 0:00:58]} Kg7 {[%emt 0:00:05]} 38. Nd6 {[%emt 0:00:08]} Kf6 {[%emt 0:07:22]} (38... Bxb4 39. Ne8+ Rxe8 40. Rxe8 $17) 39. Rb8 {[%emt 0:01:29]} (39. Nc8 {is a better defense.} Re5 40. Rd6+ Kg7 41. Rd7 Bxb4 42. Nd6) 39... Bxb4 {[%emt 0:00:37]} 40. Nxb7 {[%emt 0:01:00]} a5 {[%emt 0:00:28]} 41. Nd8 {[%emt 0:00:47]} Be4 {[%emt 0:00:52][%cal Oe7e8]} (41... Bxc5 42. Nxc6 Rc7 43. Nxa5 $15) 42. Rc8 $2 {[%emt 0:03:47] [#]} (42. Rb6 Bxc5 43. Rxc6+ Bxc6 44. Nxc6) 42... Re8 $1 {[%emt 0:00:19]} ({Not} 42... Bxc5 43. f3 Bd5 44. Nxc6 $17) 43. Ba6 {[%emt 0:02:31]} Bf3 {[%emt 0:00:19][%csl Gb4][%cal Re8e1] This pair of bishops is nice.} 44. Kg1 {[%emt 0:00:35]} Bd2 {[%emt 0:00:48]} 45. Rxc6+ {[%emt 0:03:07]} Bxc6 {[%emt 0:00:16]} 46. Nxc6 {[%emt 0:00:01][%mdl 4096] Endgame KRB-KBN} Re1+ {[%emt 0:00:16]} 47. Kg2 {[%emt 0:00:20]} Rc1 {[%emt 0:00:12][%cal Oa5a4]} 48. Nb8 {[%emt 0:00:21]} a4 {[%emt 0:00:18][%cal Oa4a3]} (48... Rxc5 49. Nd7+ Ke6 50. Nxc5+ $18) 49. Nd7+ {[%emt 0:01:55]} Ke7 {[%emt 0:00:09][%cal Oa4a3]} 50. Nb6 {[%emt 0:02:06]} a3 {[%emt 0:00:17][%cal Oa3a2] Hoping for ...a2!.} 51. Bc4 {[%emt 0:00:15] [#]} Rxc4 $1 {[%emt 0:00:23]} 52. Nxc4 {[%emt 0:00:02]} a2 {[%emt 0:00:11]} 53. Nxd2 {[%emt 0:00:24]} a1=Q {[%emt 0:00:07]} (53... a1=B $2 {perishes.} 54. Kf3 $18) 54. Nf1 {[%emt 0:00:27]} Qc3 {[%emt 0:00:17]} 55. Ne3 {[%emt 0:00:11]} Qxc5 {[%emt 0:00:06]} 56. Nf5+ {[%emt 0:00:10]} Kd7 {[%emt 0:00:34]} 57. Kg1 {[%emt 0:01:13] [#]} h5 $1 {[%emt 0:00:12]} 58. Ne3 {[%emt 0:00:44]} h4 {[%emt 0:00:15] Weighted Error Value: White=0.95/Black=0.34  Mistake:       	White=5     	Black=3      Inaccurate:     	White=5     	---        OK:         	White=11    	Black=16     Best:        	White=2     	Black=2      Strong:       	White=1     	Black=1      Brilliant:      	---       	Black=1} 0-1

[Event "12th National Amateur Chess-ch 2025"]
[Site "Bihar"]
[Date "2025.03.27"]
[Round "4.14"]
[White "Prakash Vaishnavi"]
[Black "Arushi Severin Helen D Silva"]
[Result "0-1"]
[Annotator "NA RC"]
[ECO "D41"]
[WhiteElo "1749"]
[BlackElo "1746"]
[PlyCount "88"]
[EventDate "2025.03.25"]
[EventCountry "IND"]
[SourceTitle "playchess.com"]
[Source "ChessBase"]
[SourceQuality "1"]
[TimeControl "5400+30"]

1. e4 {[%emt 0:00:06]} c6 {[%emt 0:00:14]} 2. d4 {[%emt 0:00:04]} d5 {[%emt 0:00:06]} 3. exd5 {[%emt 0:00:07]} cxd5 {[%emt 0:00:05]} 4. c4 {[%emt 0:00:06]} Nf6 {[%emt 0:00:33]} 5. Nc3 {[%emt 0:00:27]} e6 {[%emt 0:00:17]} 6. cxd5 {[%emt 0:01:40]} Nxd5 {[%emt 0:02:22]} 7. Nf3 {[%emt 0:01:01]} Be7 {[%emt 0:03:20]} 8. Bc4 {[%emt 0:04:10]} Nb6 {[%emt 0:02:51]} 9. Bd3 {[%emt 0:02:02]} Bf6 {[%emt 0:02:29]} 10. O-O {[%emt 0:02:43]} h6 {[%emt 0:08:25]} 11. Bf4 {[%emt 0:05:34]} Nc6 {[%emt 0:04:38]} 12. Nb5 {[%emt 0:18:49]} Nd5 {[%emt 0:13:09]} 13. Nd6+ {[%emt 0:01:41]} Kf8 {[%emt 0:00:03]} 14. Bg3 {[%emt 0:00:10]} Be7 {[%emt 0:01:21]} 15. Nc4 {[%emt 0:10:16]} Nf6 {[%emt 0:04:27]} 16. Nce5 {[%emt 0:03:02]} Bd7 {[%emt 0:03:43]} 17. Rc1 {[%emt 0:02:22]} Qb6 {[%emt 0:04:00]} 18. Re1 {[%emt 0:10:02]} Be8 {[%emt 0:06:01]} 19. Nxc6 {[%emt 0:03:42]} Bxc6 {[%emt 0:01:09]} 20. Ne5 {[%emt 0:00:02]} Rd8 {[%emt 0:10:05]} 21. Nxc6 {[%emt 0:00:30]} bxc6 {[%emt 0:00:04]} 22. Be5 {[%emt 0:01:25]} Nd7 {[%emt 0:01:13]} 23. Qf3 {[%emt 0:01:04]} c5 {[%emt 0:05:45]} 24. dxc5 {[%emt 0:04:04]} Bxc5 {[%emt 0:01:14]} 25. Bg6 {[%emt 0:10:35]} f6 {[%emt 0:01:21]} 26. Bc3 {[%emt 0:00:49]} Ke7 {[%emt 0:05:26]} 27. Re2 {[%emt 0:02:09]} Nf8 {[%emt 0:01:45]} 28. Bc2 {[%emt 0:02:05]} Bd4 {[%emt 0:04:23]} 29. Qg4 {[%emt 0:04:06]} g5 {[%emt 0:02:18]} 30. Bb3 Bxc3 {[%emt 0:01:00]} 31. bxc3 {[%emt 0:02:12]} Rd6 {[%emt 0:00:43]} 32. Rce1 {[%emt 0:01:31]} h5 {[%emt 0:00:44]} 33. Qe4 {[%emt 0:02:18]} Rg8 {[%emt 0:01:22]} 34. Qc2 {[%emt 0:02:03]} Rg7 {[%emt 0:01:34]} 35. Re4 {[%emt 0:01:38]} a5 {[%emt 0:01:52]} 36. Rd4 {[%emt 0:01:44]} Rxd4 {[%emt 0:02:28]} 37. cxd4 {[%emt 0:00:02]} Kd8 {[%emt 0:00:47]} 38. Qe2 {[%emt 0:01:25]} Re7 {[%emt 0:04:49]} 39. Qxh5 {[%emt 0:01:26]} Qb4 {[%emt 0:00:42]} 40. Qe2 {[%emt 0:00:40]} a4 {[%emt 0:01:26]} 41. Bc4 {[%emt 0:00:31]} Nd7 {[%emt 0:00:04]} 42. Rc1 {[%emt 0:00:34]} e5 {[%emt 0:00:18]} 43. dxe5 {[%emt 0:00:25]} Rxe5 {[%emt 0:00:07]} 44. Qf3 {[%emt 0:00:35]} Qxc4 {[%emt 0:00:27]} 0-1